bitfinex/quotes_BTCUSD_20240728
["timestamp","ask_amount","ask_price","bid_price","bid_amount"]
[1722158250845,1.05862085,67500.0,67499.0,0.002924]
[1722158251044,1.13599319,67500.0,67499.0,0.002924]
[1722158251258,1.05861339,67500.0,67499.0,0.002924]
[1722158251426,1.05861339,67500.0,67499.0,0.001924]
[1722158251427,1.48396629,67500.0,67499.0,0.001924]
[1722158251611,1.48396629,67500.0,67499.0,0.000924]
[1722158251816,1.38002206,67500.0,67499.0,0.000924]
[1722158252083,1.37602206,67500.0,67499.0,0.000924]
[1722158252450,1.49095713,67500.0,67499.0,0.000924]
[1722158252810,1.48695713,67500.0,67499.0,0.000924]
[1722158253254,1.38002206,67500.0,67499.0,0.000924]
[1722158253477,1.48795094,67500.0,67499.0,0.000924]
[1722158253675,1.49095094,67500.0,67499.0,0.000924]
[1722158254129,1.49097665,67500.0,67499.0,0.000924]
[1722158257047,1.38004777,67500.0,67499.0,0.000924]
[1722158257251,1.38004038,67500.0,67499.0,0.000924]
[1722158257627,1.03360883,67500.0,67499.0,0.000924]
[1722158259223,0.65087183,67500.0,67499.0,0.000924]
[1722158259423,0.41383483,67500.0,67499.0,0.000924]
[1722158260529,0.41113088,67500.0,67499.0,0.000924]
[1722158260908,0.41117028,67500.0,67499.0,0.000924]
[1722158261589,0.41117028,67500.0,67499.0,0.002924]
[1722158261771,0.40717028,67500.0,67499.0,0.002924]
[1722158262142,0.64420728,67500.0,67499.0,0.002924]
[1722158262558,0.64420728,67500.0,67499.0,0.004924]
[1722158263417,0.71980728,67500.0,67499.0,0.004924]
[1722158263834,0.64209107,67500.0,67499.0,0.004924]
[1722158263981,1.01677575,67500.0,67499.0,0.004924]
[1722158266466,1.01677575,67500.0,67499.0,0.002924]
[1722158266793,1.01777575,67500.0,67499.0,0.002924]
[1722158267266,1.01675603,67500.0,67499.0,0.002924]
[1722158267496,1.01775603,67500.0,67499.0,0.000924]
[1722158267627,1.01875603,67500.0,67499.0,0.000924]
[1722158268242,1.01975603,67500.0,67499.0,0.000924]
[1722158268574,1.25679303,67500.0,67499.0,0.000924]
[1722158270423,1.25654539,67500.0,67499.0,0.000924]
[1722158270754,1.24322499,67500.0,67499.0,0.000924]
[1722158272740,1.24323419,67500.0,67499.0,0.000924]
[1722158276721,1.16584473,67500.0,67499.0,0.000924]
[1722158276916,1.24323049,67500.0,67499.0,0.000924]
[1722158279021,1.24223049,67500.0,67499.0,0.000924]
[1722158279379,1.24423049,67500.0,67499.0,0.000924]
[1722158279783,1.24223049,67500.0,67499.0,0.000924]
[1722158279980,1.16284473,67500.0,67499.0,0.000924]
[1722158280236,1.24023435,67500.0,67499.0,0.000924]
[1722158280566,1.16784473,67500.0,67499.0,0.000924]
[1722158280733,1.24323428,67500.0,67499.0,0.000924]
[1722158282082,1.35060693,67500.0,67499.0,0.000924]
[1722158282306,1.16784473,67500.0,67499.0,0.000924]
[1722158282506,1.35049352,67500.0,67499.0,0.000924]
[1722158284126,1.24239286,67500.0,67499.0,0.000924]
[1722158284293,1.34907957,67500.0,67499.0,0.000924]
[1722158285005,1.43779183,67500.0,67499.0,0.000924]
[1722158285731,1.34936287,67500.0,67499.0,0.000924]
[1722158287610,1.46025704,67500.0,67499.0,0.000924]
[1722158288069,1.34936287,67500.0,67499.0,0.000924]
[1722158288928,1.34825262,67500.0,67499.0,0.000924]
[1722158290526,1.13997848,67500.0,67499.0,0.000924]
[1722158290931,1.05121562,67500.0,67499.0,0.000924]
[1722158292373,0.73857862,67500.0,67499.0,0.000924]
[1722158292575,0.63229204,67500.0,67499.0,0.000924]
[1722158292791,0.63239108,67500.0,67499.0,0.000924]
[1722158294487,0.86942808,67500.0,67499.0,0.000924]
[1722158295414,0.79520773,67500.0,67499.0,0.000924]
[1722158295585,0.86783271,67500.0,67499.0,0.000924]
[1722158297391,0.63079571,67500.0,67499.0,0.000924]
[1722158297564,0.39375871,67500.0,67499.0,0.000924]
[1722158297767,0.39375871,67500.0,67499.0,0.076624]
[1722158297987,0.39375871,67500.0,67499.0,0.000924]
[1722158298275,0.63079571,67500.0,67499.0,0.000924]
[1722158298643,0.55817073,67500.0,67499.0,0.000924]
[1722158298946,0.63108058,67500.0,67499.0,0.000924]
[1722158301596,0.39404358,67500.0,67499.0,0.000924]
[1722158302002,0.32113373,67500.0,67499.0,0.000924]
[1722158302207,0.39427613,67500.0,67499.0,0.000924]
[1722158302614,0.39427619,67500.0,67499.0,0.000924]
[1722158302748,0.37427619,67500.0,67499.0,0.000924]
[1722158303158,0.37127619,67500.0,67499.0,0.000924]
[1722158303365,0.27191819,67500.0,67499.0,0.063024]
[1722158303587,0.27191819,67500.0,67499.0,0.811624]
[1722158303998,0.14046237,67500.0,67499.0,0.811624]
[1722158304877,0.13846237,67500.0,67499.0,0.811624]
[1722158305389,0.1387688,67500.0,67499.0,0.811624]
[1722158305893,0.1397688,67500.0,67499.0,0.814624]
[1722158306896,0.1407688,67500.0,67499.0,0.814624]
[1722158308443,0.06731991,67500.0,67499.0,0.814624]
[1722158308633,0.14074547,67500.0,67499.0,0.814624]
[1722158309795,0.14074547,67500.0,67499.0,1.20192357]
[1722158310004,0.06731991,67500.0,67499.0,1.20192357]
[1722158314439,0.06731991,67500.0,67499.0,0.96488357]
[1722158314998,0.06731991,67500.0,67499.0,0.421584]
[1722158315196,0.06731991,67500.0,67499.0,0.658624]
[1722158315573,0.06731991,67500.0,67499.0,0.421584]
[1722158316758,0.06731991,67500.0,67499.0,0.359484]
[1722158317521,0.06731991,67500.0,67499.0,0.674124]
[1722158318125,0.06731991,67500.0,67499.0,0.437084]
[1722158319358,0.06815991,67500.0,67499.0,0.437084]
[1722158320880,0.14143681,67500.0,67499.0,0.437084]
[1722158321521,0.06815991,67500.0,67499.0,0.437084]
[1722158321735,0.14136683,67500.0,67499.0,0.437084]
[1722158322764,0.14097622,67500.0,67499.0,0.437084]
[1722158324781,0.0677693,67500.0,67499.0,0.437084]
[1722158325187,0.14101487,67500.0,67499.0,0.437084]
[1722158328271,0.14093622,67500.0,67499.0,0.437084]
[1722158330444,0.07600692,67500.0,67499.0,0.437084]
[1722158331509,0.07593785,67500.0,67499.0,0.437084]
[1722158331938,0.00284,67500.0,67499.0,0.437084]
[1722158333123,0.07593712,67500.0,67499.0,0.437084]
[1722158334407,0.07593712,67500.0,67499.0,0.674124]
[1722158334721,0.00284,67500.0,67499.0,0.674124]
[1722158335156,0.07598115,67500.0,67499.0,0.674124]
[1722158338215,0.00284,67500.0,67499.0,0.674124]
[1722158338414,0.07442831,67500.0,67499.0,0.674124]
[1722158340832,0.00284,67500.0,67499.0,0.674124]
[1722158341594,0.07444693,67500.0,67499.0,0.674124]
[1722158342690,0.14580607,67500.0,67499.0,0.674124]
[1722158343294,0.07419914,67500.0,67499.0,0.674124]
[1722158343496,0.14572075,67500.0,67499.0,0.674124]
[1722158343830,0.07419914,67500.0,67499.0,0.674124]
[1722158344027,0.14572537,67500.0,67499.0,0.674124]
[1722158344498,0.14577402,67500.0,67499.0,0.674124]
[1722158344685,0.14568885,67500.0,67499.0,0.674124]
[1722158347322,0.1458048,67500.0,67499.0,0.674124]
[1722158349584,0.1458048,67500.0,67499.0,0.817124]
[1722158350566,0.14595214,67500.0,67499.0,0.817124]
[1722158350883,0.07411397,67500.0,67499.0,0.817124]
[1722158351105,0.14601852,67500.0,67499.0,0.817124]
[1722158351444,0.14601852,67500.0,67499.0,1.29555357]
[1722158351668,0.07411397,67500.0,67499.0,1.57485357]
[1722158351846,0.15001095,67520.0,67519.0,0.118485]
[1722158352051,0.29305735,67520.0,67519.0,0.355455]
[1722158352260,0.29461155,67520.0,67519.0,0.355455]
[1722158352474,0.1554374,67520.0,67519.0,0.355455]
[1722158353327,0.1554374,67520.0,67519.0,0.359455]
[1722158353657,0.15159056,67520.0,67519.0,0.359455]
[1722158354096,0.15159056,67520.0,67519.0,0.362455]
[1722158354738,0.0833,67520.0,67519.0,0.362455]
[1722158354944,0.0833,67520.0,67519.0,0.007]
[1722158355184,0.3310253,67520.0,67519.0,0.007]
[1722158356125,0.2125423,67520.0,67519.0,0.007]
[1722158356812,0.21235878,67520.0,67519.0,0.125485]
[1722158358209,0.14935878,67520.0,67519.0,0.125485]
[1722158360023,0.14960714,67520.0,67519.0,0.125485]
[1722158360386,0.0833,67520.0,67519.0,0.125485]
[1722158360609,0.0833,67520.0,67519.0,0.362455]
[1722158361693,0.14959009,67520.0,67519.0,0.362455]
[1722158362390,0.14959009,67520.0,67519.0,0.125485]
[1722158362391,0.1497288,67520.0,67519.0,0.125485]
[1722158363454,0.14970947,67520.0,67519.0,0.125485]
[1722158364693,0.32758617,67643.0,67519.0,0.125485]
[1722158364694,0.081,67524.0,67523.0,0.118478]
[1722158364899,0.14736411,67524.0,67523.0,0.118478]
[1722158365947,0.14736411,67524.0,67523.0,0.355434]
[1722158366103,0.14836411,67524.0,67523.0,0.118478]
[1722158366534,0.1483342,67524.0,67520.0,0.236966]
[1722158366735,0.1483342,67524.0,67519.0,0.23697]
[1722158366736,0.0663342,67523.0,67521.0,0.236962]
[1722158367548,0.0663342,67523.0,67522.0,0.118478]
[1722158368333,0.0673342,67523.0,67522.0,0.118478]
[1722158369666,0.0683342,67523.0,67522.0,0.118478]
[1722158369794,0.002,67523.0,67522.0,0.118478]
[1722158369998,0.001,67523.0,67522.0,0.118478]
[1722158370416,0.001,67523.0,67522.0,0.124478]
[1722158370845,0.002,67523.0,67522.0,0.130478]
[1722158371840,0.06619343,67523.0,67522.0,0.130478]
[1722158372151,0.06619343,67523.0,67522.0,0.367437]
[1722158372472,0.06611448,67523.0,67522.0,0.367437]
[1722158372623,0.002,67523.0,67522.0,0.367437]
[1722158374463,0.06650827,67523.0,67522.0,0.367437]
[1722158376259,0.06477057,67523.0,67522.0,0.367437]
[1722158378743,0.06477057,67523.0,67522.0,0.130478]
[1722158379612,0.06494939,67523.0,67522.0,0.130478]
[1722158379985,0.06492705,67523.0,67522.0,0.130478]
[1722158381324,0.13957006,67523.0,67522.0,0.367437]
[1722158382067,0.13957006,67523.0,67522.0,0.130478]
[1722158382477,0.13957006,67523.0,67522.0,0.012]
[1722158382688,0.07664301,67523.0,67522.0,0.012]
[1722158382857,0.13967933,67523.0,67522.0,0.130479]
[1722158384324,0.14051933,67523.0,67522.0,0.130479]
[1722158385463,0.14051933,67523.0,67522.0,0.012]
[1722158385602,0.39749733,67523.0,67522.0,0.012]
[1722158385922,0.33446101,67523.0,67522.0,0.012]
[1722158386103,0.39639669,67523.0,67522.0,0.012]
[1722158386512,0.63335269,67523.0,67522.0,0.012]
[1722158387083,0.39639669,67523.0,67522.0,0.012]
[1722158388144,0.63335269,67523.0,67522.0,0.012]
[1722158389258,0.63340975,67523.0,67522.0,0.012]
[1722158389404,0.87036575,67523.0,67522.0,0.012]
[1722158389805,0.87036574,67523.0,67522.0,0.012]
[1722158390029,1.18492174,67523.0,67522.0,0.012]
[1722158390235,1.27961453,67523.0,67522.0,0.012]
[1722158391278,1.27861453,67523.0,67522.0,0.006]
[1722158391580,0.1385,67515.0,67514.0,0.00918437]
[1722158391828,0.1385,67515.0,67511.0,0.118498]
[1722158391829,0.27513574,67515.0,67511.0,0.118498]
[1722158392007,0.0633842,67514.0,67511.0,0.118498]
[1722158392207,0.06199273,67513.0,67511.0,0.118498]
[1722158392416,0.06199273,67512.0,67511.0,0.118498]
[1722158392618,0.06199273,67512.0,67511.0,0.218498]
[1722158393674,0.06199273,67512.0,67511.0,0.225498]
[1722158393990,0.06199273,67512.0,67511.0,0.218498]
[1722158394192,0.06199273,67512.0,67511.0,0.23559811]
[1722158394193,0.06299273,67512.0,67511.0,0.23559811]
[1722158394435,0.06299273,67512.0,67511.0,0.47259611]
[1722158394652,0.06399273,67512.0,67511.0,0.48159611]
[1722158395448,0.002,67512.0,67511.0,0.48159611]
[1722158396623,0.002,67512.0,67511.0,0.71859411]
[1722158396818,0.002,67512.0,67511.0,0.48159611]
[1722158400849,0.20414654,67512.0,67511.0,0.12610011]
[1722158401023,0.20414654,67512.0,67511.0,0.02610011]
[1722158401253,0.20414654,67512.0,67511.0,0.12610011]
[1722158401453,0.20356128,67512.0,67511.0,0.12610011]
[1722158402666,0.1423,67512.0,67511.0,0.12610011]
[1722158403373,0.20358181,67512.0,67511.0,0.12610011]
[1722158403542,0.2035821,67512.0,67511.0,0.12610011]
[1722158404359,0.1423,67512.0,67511.0,0.12610011]
[1722158404761,0.20367076,67512.0,67511.0,0.12610011]
[1722158405327,0.20367076,67512.0,67511.0,0.02610011]
[1722158405734,0.20364279,67512.0,67511.0,0.02610011]
[1722158407060,0.20152346,67512.0,67511.0,0.00910011]
[1722158407463,0.20252346,67512.0,67511.0,0.006]
[1722158407843,0.1403,67512.0,67509.0,0.218501]
[1722158408130,0.1413,67512.0,67511.0,0.006]
[1722158408332,0.19789008,67512.0,67509.0,0.218501]
[1722158408536,0.19789008,67512.0,67511.0,0.009]
[1722158408537,0.1413,67512.0,67511.0,0.009]
[1722158408732,0.19889149,67512.0,67511.0,0.009]
[1722158408939,0.19989149,67512.0,67511.0,0.018]
[1722158409970,0.19889149,67512.0,67511.0,0.009]
[1722158410172,0.19989149,67512.0,67511.0,0.009]
[1722158411314,0.20052364,67512.0,67511.0,0.016]
[1722158411692,0.20052415,67512.0,67511.0,0.016]
[1722158412738,0.79300915,67512.0,67511.0,0.016]
[1722158412898,0.85943539,67512.0,67511.0,0.016]
[1722158413264,0.62244139,67512.0,67511.0,0.016]
[1722158413465,0.85943539,67512.0,67511.0,0.016]
[1722158413680,0.62144139,67512.0,67511.0,0.007]
[1722158414067,0.62044139,67512.0,67511.0,0.006]
[1722158414274,0.56321724,67512.0,67511.0,0.006]
[1722158414476,0.62121183,67512.0,67511.0,0.013]
[1722158415224,0.85820583,67512.0,67511.0,0.013]
[1722158415419,1.09519983,67512.0,67511.0,0.013]
[1722158416044,1.18517657,67512.0,67511.0,0.013]
[1722158416245,1.09519983,67512.0,67511.0,0.013]
[1722158416641,1.09603983,67512.0,67511.0,0.013]
[1722158417498,1.03904524,67512.0,67511.0,0.013]
[1722158417699,1.0959483,67512.0,67511.0,0.013]
[1722158418404,1.18473759,67512.0,67511.0,0.013]
[1722158418606,1.274686,67512.0,67511.0,0.013]
[1722158418903,1.18589671,67512.0,67511.0,0.013]
[1722158419482,1.18489671,67512.0,67511.0,0.007]
[1722158419688,0.355545,67502.0,67501.0,0.000924]
[1722158419867,0.6201743,67502.0,67501.0,0.000924]
[1722158420386,0.55374806,67502.0,67501.0,0.000924]
[1722158420991,0.55480975,67502.0,67501.0,0.007924]
[1722158421208,0.55580975,67502.0,67501.0,0.013924]
[1722158422277,0.55736395,67502.0,67501.0,0.013924]
[1722158422819,0.79439395,67502.0,67501.0,0.013924]
[1722158422973,0.79283975,67502.0,67501.0,0.013924]
[1722158424072,0.735875,67502.0,67501.0,0.013924]
[1722158424272,0.79285238,67502.0,67501.0,0.013924]
[1722158427501,0.79291329,67502.0,67501.0,0.013924]
[1722158430879,1.09184872,67502.0,67501.0,0.013924]
[1722158431284,1.09184522,67502.0,67501.0,0.013924]
[1722158431880,1.09084522,67502.0,67501.0,0.007924]
[1722158432083,1.09084522,67502.0,67501.0,0.000924]
[1722158432286,1.08984522,67502.0,67501.0,0.000924]
[1722158433084,1.09384522,67502.0,67501.0,0.000924]
[1722158433286,0.85681522,67502.0,67501.0,0.000924]
[1722158433545,0.24545522,67502.0,67501.0,0.000924]
[1722158433717,0.05693282,67502.0,67501.0,0.000924]
[1722158434038,0.008,67502.0,67501.0,0.000924]
[1722158434255,0.0095542,67502.0,67501.0,0.000924]
[1722158434697,0.0135542,67502.0,67501.0,0.000924]
[1722158434882,0.0055542,67502.0,67501.0,0.000924]
[1722158435277,0.0025542,67502.0,67501.0,0.004924]
[1722158435509,0.0065542,67502.0,67501.0,0.004924]
[1722158436013,0.001,67502.0,67501.0,0.004924]
[1722158436425,0.002,67502.0,67501.0,0.010924]
[1722158437495,0.002,67502.0,67501.0,0.366473]
[1722158437698,0.05949442,67502.0,67501.0,0.366473]
[1722158437841,0.05949442,67502.0,67501.0,0.97486557]
[1722158438041,0.002,67502.0,67501.0,0.97486557]
[1722158444959,0.002,67502.0,67501.0,1.21189857]
[1722158448695,0.00284,67502.0,67501.0,1.21189857]
[1722158457027,0.00284,67502.0,67501.0,0.51673257]
[1722158457028,0.08474,67502.0,67501.0,0.51673257]
[1722158459523,0.08474,67502.0,67501.0,0.366473]
[1722158462013,0.08474,67502.0,67501.0,0.603506]
[1722158462216,0.08474,67502.0,67501.0,0.366473]
[1722158465299,0.00284,67502.0,67501.0,0.366473]
[1722158467391,0.00284,67502.0,67501.0,0.603506]
[1722158467597,0.00284,67502.0,67501.0,0.366473]
[1722158468021,0.00284,67502.0,67501.0,0.603506]
[1722158470808,0.00284,67502.0,67501.0,1.45941157]
[1722158470973,0.00084,67512.0,67501.0,1.34737857]
[1722158471129,0.00084,67512.0,67511.0,1.049593]
[1722158471692,0.00084,67512.0,67511.0,1.19985257]
[1722158472490,0.00084,67512.0,67511.0,0.82035457]
[1722158472692,0.00084,67512.0,67511.0,0.74275457]
[1722158473333,0.08214,67512.0,67511.0,0.592495]
[1722158473463,0.08214,67512.0,67511.0,0.355497]
[1722158473911,0.08314,67512.0,67511.0,0.367497]
[1722158474115,0.14082772,67512.0,67511.0,0.367497]
[1722158474469,0.14182772,67512.0,67511.0,0.381497]
[1722158474672,0.14082772,67512.0,67511.0,0.369497]
[1722158474924,0.08314,67512.0,67511.0,0.369497]
[1722158475123,0.08414,67512.0,67511.0,0.377497]
[1722158476462,0.08314,67512.0,67511.0,0.369497]
[1722158476605,0.08414,67512.0,67511.0,0.381497]
[1722158479133,0.08414,67512.0,67511.0,0.618495]
[1722158479521,0.08414,67512.0,67511.0,0.696095]
[1722158481827,0.08414,67512.0,67511.0,0.618495]
[1722158483795,0.08414,67512.0,67511.0,0.144499]
[1722158484150,0.08414,67512.0,67511.0,0.381497]
[1722158492922,0.08414,67512.0,67511.0,0.026]
[1722158492923,0.55771631,67512.0,67511.0,0.026]
[1722158493290,0.63028569,67512.0,67511.0,0.026]
[1722158494036,0.1435,67508.0,67505.0,0.12742124]
[1722158494345,0.1435,67506.0,67505.0,0.118509]
[1722158494559,0.0816,67505.0,67503.0,0.12746746]
[1722158494759,0.0816,67505.0,67504.0,0.118511]
[1722158495140,0.0816,67505.0,67504.0,0.355533]
[1722158496093,0.0826,67505.0,67504.0,0.365533]
[1722158496802,0.0826,67505.0,67504.0,0.01]
[1722158496962,0.0826,67505.0,67504.0,0.128511]
[1722158497948,0.0836,67505.0,67504.0,0.138511]
[1722158498151,0.13951201,67505.0,67504.0,0.02]
[1722158498427,0.13951193,67505.0,67504.0,0.02]
[1722158498624,0.14106613,67505.0,67504.0,0.02]
[1722158499059,0.13951193,67505.0,67504.0,0.02]
[1722158499457,0.14106613,67505.0,67504.0,0.02]
[1722158500025,0.13951193,67505.0,67504.0,0.02]
[1722158500232,0.67544993,67505.0,67504.0,0.02]
[1722158500433,0.62722839,67505.0,67504.0,0.02]
[1722158500632,0.86424739,67505.0,67504.0,0.02]
[1722158501570,0.86424739,67505.0,67502.0,0.000924]
[1722158501571,0.355539,67503.0,67502.0,0.000924]
[1722158501873,0.62580632,67503.0,67502.0,0.000924]
[1722158502017,0.56932746,67503.0,67502.0,0.000924]
[1722158502214,0.6258322,67503.0,67502.0,0.000924]
[1722158502518,0.13810474,67503.0,67502.0,0.000924]
[1722158502756,0.13810474,67503.0,67502.0,0.006924]
[1722158502757,0.13910474,67503.0,67502.0,0.006924]
[1722158503159,0.14010474,67503.0,67502.0,0.012924]
[1722158503637,0.14010474,67503.0,67502.0,0.131439]
[1722158503842,0.14099525,67503.0,67502.0,0.131439]
[1722158504039,0.14099525,67503.0,67502.0,0.89965857]
[1722158504040,0.002,67503.0,67502.0,0.89965857]
[1722158504244,0.002,67503.0,67502.0,1.13668857]
[1722158522541,0.002,67503.0,67502.0,1.05578857]
[1722158522720,0.002,67503.0,67502.0,0.99278857]
[1722158533368,0.002,67503.0,67502.0,1.69742857]
[1722158533543,0.00084,67512.0,67511.0,0.918573]
[1722158533713,0.00084,67512.0,67511.0,1.24643257]
[1722158533915,0.00084,67512.0,67511.0,1.60651229]
[1722158534342,0.00084,67512.0,67511.0,1.48343057]
[1722158535617,0.00184,67512.0,67511.0,1.49143057]
[1722158535816,0.00184,67512.0,67511.0,1.49443057]
[1722158536256,0.00184,67512.0,67511.0,1.49143057]
[1722158537203,0.00184,67512.0,67511.0,1.49943057]
[1722158545149,0.00184,67512.0,67511.0,1.50859411]
[1722158549746,0.00084,67523.0,67519.0,0.829395]
[1722158549747,0.0802,67520.0,67519.0,0.829395]
[1722158550111,0.0802,67520.0,67519.0,0.97965457]
[1722158550622,0.1412,67520.0,67519.0,0.97965457]
[1722158552382,0.1422,67520.0,67519.0,0.97965457]
[1722158552717,0.1432,67520.0,67519.0,0.97965457]
[1722158554399,0.1422,67520.0,67519.0,0.97965457]
[1722158555152,0.1412,67520.0,67519.0,0.97965457]
[1722158555358,0.1412,67520.0,67519.0,0.98265457]
[1722158555822,0.1412,67520.0,67519.0,0.98665457]
[1722158558557,0.1412,67520.0,67519.0,0.99576972]
[1722158559966,0.1412,67520.0,67519.0,0.75879972]
[1722158563494,0.19589458,67520.0,67519.0,0.75879972]
[1722158565760,0.05469458,67520.0,67519.0,1.06066972]
[1722158565961,0.08024,67523.0,67519.0,0.23127472]
[1722158566168,0.05474948,67522.0,67521.0,0.592407]
[1722158566364,0.08024,67523.0,67522.0,0.355438]
[1722158566573,0.13500413,67523.0,67522.0,0.74265657]
[1722158567184,0.13500413,67523.0,67522.0,0.82025657]
[1722158569230,0.13500413,67523.0,67522.0,1.05721557]
[1722158570185,0.08024,67523.0,67522.0,1.05721557]
[1722158570354,0.13496967,67523.0,67522.0,1.05721557]
[1722158571986,0.13496967,67523.0,67522.0,1.05921557]
[1722158572163,0.13496967,67523.0,67522.0,1.06221557]
[1722158572994,0.08024,67523.0,67522.0,1.06221557]
[1722158573924,0.13350442,67523.0,67522.0,1.06221557]
[1722158574127,0.08024,67523.0,67522.0,1.06221557]
[1722158574491,0.13350451,67523.0,67522.0,1.06221557]
[1722158575094,0.08024,67523.0,67522.0,1.06221557]
[1722158575579,0.13354766,67523.0,67522.0,1.06221557]
[1722158575747,0.13354675,67523.0,67522.0,1.06221557]
[1722158576335,0.13354873,67523.0,67522.0,1.06221557]
[1722158576904,0.08024,67523.0,67522.0,1.06221557]
[1722158577958,0.13350256,67523.0,67522.0,1.06221557]
[1722158578322,0.13350399,67523.0,67522.0,1.06221557]
[1722158579653,0.08024,67523.0,67522.0,1.06221557]
[1722158579852,0.13360639,67523.0,67522.0,0.98461557]
[1722158580052,0.08024,67523.0,67522.0,0.98461557]
[1722158580380,0.13360525,67523.0,67522.0,0.98461557]
[1722158582168,0.13360677,67523.0,67522.0,0.98461557]
[1722158583073,0.08024,67523.0,67522.0,0.98461557]
[1722158583276,0.13360404,67523.0,67522.0,0.98461557]
[1722158583896,0.08024,67523.0,67522.0,0.98461557]
[1722158584977,0.13365005,67523.0,67522.0,0.98461557]
[1722158585509,0.08024,67523.0,67522.0,0.98461557]
[1722158585913,0.13365245,67523.0,67522.0,0.98461557]
[1722158587285,0.08024,67523.0,67522.0,0.98461557]
[1722158587873,0.13173627,67523.0,67522.0,0.98461557]
[1722158588130,0.13173711,67523.0,67522.0,0.98461557]
[1722158588749,0.08024,67523.0,67522.0,0.98461557]
[1722158588913,0.12912265,67523.0,67522.0,0.98461557]
[1722158589090,0.12912265,67523.0,67522.0,0.74765657]
[1722158589457,0.19452265,67523.0,67522.0,0.74765657]
[1722158591919,0.14564,67523.0,67522.0,0.74765657]
[1722158592092,0.19458027,67523.0,67522.0,0.74765657]
[1722158592465,0.19458011,67523.0,67522.0,0.74765657]
[1722158594262,0.19450769,67523.0,67522.0,0.74765657]
[1722158595216,0.14564,67523.0,67522.0,0.74765657]
[1722158595446,0.19456078,67523.0,67522.0,0.74765657]
[1722158598502,0.14564,67523.0,67522.0,0.74765657]
[1722158598750,0.19462342,67523.0,67522.0,0.74765657]
[1722158601953,0.1927731,67523.0,67522.0,0.74765657]
[1722158602325,0.19277302,67523.0,67522.0,0.74765657]
[1722158605106,0.19279205,67523.0,67522.0,0.74765657]
[1722158608325,0.14564,67523.0,67522.0,0.74765657]
[1722158608554,0.19307258,67523.0,67522.0,0.74765657]
[1722158609287,0.19302541,67523.0,67522.0,0.74765657]
[1722158610822,0.08024,67523.0,67522.0,0.74765657]
[1722158611276,0.00084,67523.0,67522.0,0.74765657]
[1722158611476,0.00084,67523.0,67522.0,0.82525657]
[1722158613246,0.00084,67523.0,67522.0,1.06221557]
[1722158613451,0.00084,67523.0,67522.0,1.20341557]
[1722158614571,0.00084,67523.0,67522.0,1.65245457]
[1722158615011,0.00084,67523.0,67522.0,1.88845761]
[1722158615308,0.00084,67523.0,67522.0,1.77750996]
[1722158615507,0.00084,67523.0,67522.0,1.77550996]
[1722158616222,0.00084,67523.0,67522.0,1.84002306]
[1722158616364,0.00084,67523.0,67522.0,1.77350996]
[1722158616567,0.00084,67523.0,67522.0,1.84002525]
[1722158616768,0.00184,67523.0,67522.0,1.77950996]
[1722158617241,0.00284,67523.0,67522.0,1.85499649]
[1722158617377,0.00284,67523.0,67522.0,1.77050996]
[1722158617378,0.00084,67523.0,67522.0,1.77050996]
[1722158617572,0.00184,67523.0,67522.0,1.83083083]
[1722158617796,0.00284,67523.0,67522.0,1.79850996]
[1722158618127,0.00284,67523.0,67522.0,1.79850918]
[1722158618329,0.00284,67523.0,67522.0,1.84281341]
[1722158618528,0.00284,67523.0,67522.0,1.79850918]
[1722158618729,0.00284,67523.0,67522.0,1.84281412]
[1722158618973,0.00284,67523.0,67522.0,1.79850918]
[1722158619179,0.00284,67523.0,67522.0,1.86498302]
[1722158619330,0.00284,67523.0,67522.0,1.842805]
[1722158619740,0.00284,67523.0,67522.0,1.79850918]
[1722158619941,0.00284,67523.0,67522.0,1.86498302]
[1722158620157,0.00284,67523.0,67522.0,1.79850918]
[1722158621355,0.00284,67523.0,67522.0,1.84477746]
[1722158621693,0.00284,67523.0,67522.0,1.80050284]
[1722158621918,0.00284,67523.0,67522.0,1.8447808]
[1722158622249,0.00284,67523.0,67522.0,2.0009808]
[1722158622437,0.0015542,67534.0,67533.0,0.355381]
[1722158622637,0.0015542,67534.0,67533.0,1.05708257]
[1722158623056,0.0756,67535.0,67534.0,0.829209]
[1722158623257,0.0756,67535.0,67534.0,0.97946857]
[1722158624569,0.0756,67535.0,67534.0,0.98946857]
[1722158624570,0.0766,67535.0,67534.0,0.98946857]
[1722158625192,0.0776,67535.0,67534.0,0.99946857]
[1722158628249,0.002,67535.0,67534.0,1.08854857]
[1722158628452,0.002,67535.0,67534.0,1.11154857]
[1722158629441,0.002,67535.0,67534.0,1.12069808]
[1722158631680,0.0836,67535.0,67534.0,1.09769808]
[1722158634622,0.0836,67535.0,67534.0,0.86078108]
[1722158636404,0.146,67535.0,67534.0,0.53478408]
[1722158638463,0.0836,67535.0,67534.0,0.77170108]
[1722158641817,0.08444,67535.0,67534.0,0.77170108]
[1722158643325,0.08444,67535.0,67534.0,0.53478408]
[1722158643730,0.08444,67535.0,67534.0,0.77170108]
[1722158647131,0.08444,67535.0,67534.0,0.53478408]
[1722158647333,0.08444,67535.0,67534.0,0.77170108]
[1722158647556,0.08444,67535.0,67534.0,0.53478408]
[1722158649118,0.268697,67535.0,67534.0,0.02914951]
[1722158649345,0.6278288,67535.0,67534.0,0.02914951]
[1722158649587,0.58705734,67535.0,67534.0,0.02]
[1722158649782,0.62783507,67535.0,67534.0,0.02]
[1722158650472,0.39092107,67535.0,67534.0,0.02]
[1722158651045,0.39092107,67535.0,67534.0,0.01]
[1722158651246,0.38992107,67535.0,67534.0,0.01]
[1722158651544,0.118459,67534.0,67531.0,0.1]
[1722158651772,0.12377827,67533.0,67530.0,0.1]
[1722158651947,0.04077773,67532.0,67530.0,0.118465]
[1722158652150,0.1441,67531.0,67530.0,0.118465]
[1722158652485,0.18487773,67531.0,67530.0,0.218465]
[1722158652633,0.1441,67531.0,67530.0,0.46443292]
[1722158653929,0.1441,67531.0,67530.0,0.47143292]
[1722158654115,0.1441,67531.0,67530.0,0.46443292]
[1722158654525,0.1451,67531.0,67530.0,0.47243292]
[1722158655357,0.1451,67531.0,67530.0,0.48043292]
[1722158667740,0.0793,67531.0,67530.0,0.48043292]
[1722158676820,0.0793,67531.0,67530.0,0.71736392]